[Event "*** Titled Tuesday Blitz"]
[Site "Chess.com"]
[Date "2021.02.02"]
[Round "3"]
[White "Pliukha_Mikhail"]
[Black "annacramling"]
[Result "1-0"]
[WhiteElo "2477"]
[BlackElo "2095"]
[TimeControl "180+1"]
[EndTime "10:31:23 PST"]
[Termination "Pliukha_Mikhail won by checkmate"]

1. e4 {[%clk 0:02:59.8]} 1... c5 {[%clk 0:02:59.8]} 2. d4 {[%clk 0:03:00.1]}
2... cxd4 {[%clk 0:02:58.8]} 3. Qxd4 {[%clk 0:03:01]} 3... Nc6 {[%clk 0:02:53]}
4. Qd3 {[%clk 0:03:01.4]} 4... d6 {[%clk 0:02:50.4]} 5. Nc3 {[%clk 0:03:01.5]}
5... Nf6 {[%clk 0:02:47.4]} 6. Nf3 {[%clk 0:03:01.8]} 6... g6 {[%clk 0:02:47.2]}
7. Be2 {[%clk 0:03:01.8]} 7... Bg7 {[%clk 0:02:47.4]} 8. O-O {[%clk 0:03:02.7]}
8... O-O {[%clk 0:02:48.1]} 9. Nd5 {[%clk 0:03:03]} 9... Nxd5 {[%clk 0:02:40.6]}
10. exd5 {[%clk 0:03:03.9]} 10... Ne5 {[%clk 0:02:40.6]} 11. Nxe5 {[%clk
0:03:03.9]} 11... Bxe5 {[%clk 0:02:41.5]} 12. Bh6 {[%clk 0:03:04.2]} 12... Re8
{[%clk 0:02:40.9]} 13. c3 {[%clk 0:03:04.2]} 13... Bf5 {[%clk 0:02:40.2]} 14.
Qe3 {[%clk 0:03:04.8]} 14... Qa5 {[%clk 0:02:24.5]} 15. Rfd1 {[%clk 0:03:03.8]}
15... Qa4 {[%clk 0:02:23.6]} 16. b3 {[%clk 0:02:23.1]} 16... Qh4 {[%clk
0:02:19.8]} 17. g3 {[%clk 0:02:17.5]} 17... Qe4 {[%clk 0:02:16.4]} 18. Rac1
{[%clk 0:02:07.4]} 18... Rac8 {[%clk 0:01:57.8]} 19. Bb5 {[%clk 0:01:58.7]}
19... Red8 {[%clk 0:01:18.4]} 20. Qxe4 {[%clk 0:01:49.3]} 20... Bxe4 {[%clk
0:01:17.8]} 21. Bc4 {[%clk 0:01:25.5]} 21... Bf3 {[%clk 0:00:46.4]} 22. Re1
{[%clk 0:01:23.1]} 22... Rc7 {[%clk 0:00:17]} 23. a4 {[%clk 0:01:21.2]} 23... a6
{[%clk 0:00:14.7]} 24. Be3 {[%clk 0:01:20.9]} 24... Rdc8 {[%clk 0:00:14.1]} 25.
Bb6 {[%clk 0:01:20.3]} 25... Rxc4 {[%clk 0:00:08.7]} 26. bxc4 {[%clk 0:01:20.5]}
26... Rxc4 {[%clk 0:00:09.6]} 27. Re3 {[%clk 0:01:19.7]} 27... Bxd5 {[%clk
0:00:08.8]} 28. a5 {[%clk 0:01:15.7]} 28... Bc6 {[%clk 0:00:03.6]} 29. Rce1
{[%clk 0:01:13.2]} 29... Bf6 {[%clk 0:00:03.7]} 30. Bd8 {[%clk 0:01:06.4]} 30...
Kf8 {[%clk 0:00:02.3]} 31. Bxe7+ {[%clk 0:01:06.1]} 31... Bxe7 {[%clk
0:00:02.7]} 32. Rxe7 {[%clk 0:01:07]} 32... Rxc3 {[%clk 0:00:03.3]} 33. Rc7
{[%clk 0:01:07.2]} 33... Rc2 {[%clk 0:00:03]} 34. h3 {[%clk 0:00:56.7]} 34...
Rc5 {[%clk 0:00:03.1]} 35. Ra1 {[%clk 0:00:47.7]} 35... Rf5 {[%clk 0:00:03]} 36.
f4 {[%clk 0:00:44.7]} 36... Ke8 {[%clk 0:00:02.9]} 37. Re1+ {[%clk 0:00:43.6]}
37... Kf8 {[%clk 0:00:03]} 38. Ree7 {[%clk 0:00:42.5]} 38... Rxa5 {[%clk
0:00:02.1]} 39. Rxf7+ {[%clk 0:00:42.7]} 39... Ke8 {[%clk 0:00:02.6]} 40. Rxh7
{[%clk 0:00:42.6]} 40... Ra1+ {[%clk 0:00:01.9]} 41. Kf2 {[%clk 0:00:42.4]}
41... Ra2+ {[%clk 0:00:02.5]} 42. Ke3 {[%clk 0:00:43]} 42... Ra3+ {[%clk
0:00:02.2]} 43. Kd4 {[%clk 0:00:42.4]} 43... Ra4+ {[%clk 0:00:02.1]} 44. Kc3
{[%clk 0:00:43.1]} 44... Ra3+ {[%clk 0:00:02.2]} 45. Kb2 {[%clk 0:00:43.7]}
45... Re3 {[%clk 0:00:01.3]} 46. Rc8# {[%clk 0:00:43.8]} 1-0

[Event "*** Titled Tuesday Blitz"]
[Site "Chess.com"]
[Date "2021.02.02"]
[Round "3"]
[White "Sergienko_Sergey"]
[Black "TurboSteen"]
[Result "1-0"]
[WhiteElo "2392"]
[BlackElo "2045"]
[TimeControl "180+1"]
[EndTime "10:31:23 PST"]
[Termination "Sergienko_Sergey won by checkmate"]

1. e4 {[%clk 0:02:58.7]} 1... e6 {[%clk 0:02:59.5]} 2. d4 {[%clk 0:02:58]} 2...
d5 {[%clk 0:02:59.8]} 3. Nc3 {[%clk 0:02:57.5]} 3... Bb4 {[%clk 0:02:59.1]} 4.
e5 {[%clk 0:02:57]} 4... c5 {[%clk 0:02:59.1]} 5. a3 {[%clk 0:02:57]} 5... Ba5
{[%clk 0:02:59.4]} 6. b4 {[%clk 0:02:56.4]} 6... cxd4 {[%clk 0:02:56.7]} 7. Qg4
{[%clk 0:02:55.6]} 7... Kf8 {[%clk 0:02:49.9]} 8. Nb5 {[%clk 0:02:44.5]} 8...
Bb6 {[%clk 0:02:02.9]} 9. Nf3 {[%clk 0:02:36.4]} 9... Nc6 {[%clk 0:02:00.9]} 10.
Bd3 {[%clk 0:02:28.9]} 10... f6 {[%clk 0:01:49.5]} 11. O-O {[%clk 0:02:11.9]}
11... fxe5 {[%clk 0:01:44.2]} 12. Bg5 {[%clk 0:01:52.4]} 12... Nf6 {[%clk
0:01:41.7]} 13. Qh4 {[%clk 0:01:44.3]} 13... e4 {[%clk 0:01:38.7]} 14. Rfe1
{[%clk 0:01:07.1]} 14... exd3 {[%clk 0:01:30.1]} 15. cxd3 {[%clk 0:01:04.8]}
15... e5 {[%clk 0:01:16.6]} 16. Nxe5 {[%clk 0:01:01.6]} 16... Nxe5 {[%clk
0:01:14.6]} 17. Rxe5 {[%clk 0:01:01.5]} 17... a6 {[%clk 0:01:14.8]} 18. Nxd4
{[%clk 0:00:51.1]} 18... h6 {[%clk 0:01:08.7]} 19. Bxf6 {[%clk 0:00:20]} 19...
Qxf6 {[%clk 0:01:05.5]} 20. Qh5 {[%clk 0:00:18.7]} 20... Bg4 {[%clk 0:00:50.1]}
21. Qxg4 {[%clk 0:00:15.3]} 21... Qxe5 {[%clk 0:00:48.5]} 22. Ne6+ {[%clk
0:00:14.2]} 22... Ke7 {[%clk 0:00:43.1]} 23. d4 {[%clk 0:00:13]} 23... Qxe6
{[%clk 0:00:40.3]} 24. Qxg7+ {[%clk 0:00:12.6]} 24... Kd6 {[%clk 0:00:39.8]} 25.
Qg3+ {[%clk 0:00:11.4]} 25... Kd7 {[%clk 0:00:34.5]} 26. Qg7+ {[%clk 0:00:10.2]}
26... Qe7 {[%clk 0:00:33.4]} 27. Qg4+ {[%clk 0:00:09.6]} 27... Qe6 {[%clk
0:00:28.5]} 28. Qg7+ {[%clk 0:00:08.6]} 28... Kd6 {[%clk 0:00:28.4]} 29. Qg3+
{[%clk 0:00:08.1]} 29... Kc6 {[%clk 0:00:20.3]} 30. Rc1+ {[%clk 0:00:06.2]}
30... Kb5 {[%clk 0:00:19.8]} 31. Qd3+ {[%clk 0:00:06]} 31... Ka4 {[%clk
0:00:17.5]} 32. Qc2+ {[%clk 0:00:05.9]} 32... Kb5 {[%clk 0:00:17.2]} 33. Qd3+
{[%clk 0:00:05.7]} 33... Ka4 {[%clk 0:00:16.8]} 34. Qc2+ {[%clk 0:00:05.4]}
34... Kb5 {[%clk 0:00:16.6]} 35. a4+ {[%clk 0:00:05.5]} 35... Kxb4 {[%clk
0:00:15.4]} 36. Rb1+ {[%clk 0:00:05.5]} 36... Ka5 {[%clk 0:00:11.6]} 37. Qc3+
{[%clk 0:00:05.6]} 37... Kxa4 {[%clk 0:00:11.7]} 38. Qb4# {[%clk 0:00:06]} 1-0

[Event "*** Titled Tuesday Blitz"]
[Site "Chess.com"]
[Date "2021.02.02"]
[Round "3"]
[White "Kretov_Evgenij"]
[Black "VladaSviridova"]
[Result "1-0"]
[WhiteElo "2547"]
[BlackElo "2267"]
[TimeControl "180+1"]
[EndTime "10:31:23 PST"]
[Termination "Kretov_Evgenij won by checkmate"]

1. d4 {[%clk 0:03:00.9]} 1... d5 {[%clk 0:02:59.8]} 2. c4 {[%clk 0:03:01.1]}
2... c6 {[%clk 0:02:59.9]} 3. Nc3 {[%clk 0:03:01.3]} 3... Nf6 {[%clk 0:02:59.6]}
4. e3 {[%clk 0:03:01.6]} 4... e6 {[%clk 0:02:58.5]} 5. Nf3 {[%clk 0:03:01.8]}
5... Nbd7 {[%clk 0:02:58.7]} 6. Bd3 {[%clk 0:03:01.9]} 6... dxc4 {[%clk
0:02:58.3]} 7. Bxc4 {[%clk 0:03:02.1]} 7... b5 {[%clk 0:02:58.6]} 8. Be2 {[%clk
0:03:02.2]} 8... Bd6 {[%clk 0:02:59.2]} 9. e4 {[%clk 0:03:02]} 9... e5 {[%clk
0:02:52.1]} 10. Bg5 {[%clk 0:03:00.5]} 10... O-O {[%clk 0:02:23.8]} 11. O-O
{[%clk 0:02:58.7]} 11... h6 {[%clk 0:02:14.6]} 12. Bh4 {[%clk 0:02:56.9]} 12...
exd4 {[%clk 0:01:17.8]} 13. Nxd4 {[%clk 0:02:54.9]} 13... Ne5 {[%clk 0:01:17.8]}
14. f4 {[%clk 0:02:52.5]} 14... Bc5 {[%clk 0:01:12]} 15. Bf2 {[%clk 0:02:41.7]}
15... Neg4 {[%clk 0:01:09.2]} 16. Bxg4 {[%clk 0:02:29.7]} 16... Nxg4 {[%clk
0:01:02.4]} 17. Nce2 {[%clk 0:02:26]} 17... Qb6 {[%clk 0:00:43.4]} 18. b4 {[%clk
0:01:54.3]} 18... Bxb4 {[%clk 0:00:37.4]} 19. Nb3 {[%clk 0:01:53.7]} 19... Nxf2
{[%clk 0:00:36.3]} 20. Rxf2 {[%clk 0:01:54]} 20... a5 {[%clk 0:00:26.6]} 21. Qd4
{[%clk 0:01:43.3]} 21... Qxd4 {[%clk 0:00:20]} 22. Nexd4 {[%clk 0:01:40.3]}
22... Bb7 {[%clk 0:00:18.5]} 23. Rc2 {[%clk 0:01:37.8]} 23... Rac8 {[%clk
0:00:17]} 24. Nc5 {[%clk 0:01:37.1]} 24... Ba8 {[%clk 0:00:16]} 25. a3 {[%clk
0:01:36.3]} 25... Bxc5 {[%clk 0:00:15.7]} 26. Rxc5 {[%clk 0:01:36.5]} 26... Rfd8
{[%clk 0:00:16.3]} 27. Nf5 {[%clk 0:01:32.7]} 27... Kf8 {[%clk 0:00:15.7]} 28.
Ra2 {[%clk 0:01:31.1]} 28... Rd1+ {[%clk 0:00:14.7]} 29. Kf2 {[%clk 0:01:30.7]}
29... Rd3 {[%clk 0:00:15]} 30. e5 {[%clk 0:01:28]} 30... Bb7 {[%clk 0:00:14.5]}
31. Nd6 {[%clk 0:01:27.3]} 31... Rc7 {[%clk 0:00:14.3]} 32. Nxb5 {[%clk
0:01:26.8]} 32... Rcd7 {[%clk 0:00:13.2]} 33. Nd6 {[%clk 0:01:26.8]} 33... Ba6
{[%clk 0:00:12.9]} 34. Rb2 {[%clk 0:01:26.2]} 34... g5 {[%clk 0:00:11.2]} 35.
Rb8+ {[%clk 0:01:21.8]} 35... Kg7 {[%clk 0:00:10.8]} 36. Rxc6 {[%clk 0:01:17.8]}
36... Rd2+ {[%clk 0:00:08.2]} 37. Ke3 {[%clk 0:01:16.2]} 37... Rd3+ {[%clk
0:00:07.8]} 38. Ke4 {[%clk 0:01:15.7]} 38... R3xd6 {[%clk 0:00:07.2]} 39. Rxd6
{[%clk 0:01:14.4]} 39... Bb7+ {[%clk 0:00:07.2]} 40. Kd4 {[%clk 0:01:13.7]}
40... Rc7 {[%clk 0:00:07.6]} 41. fxg5 {[%clk 0:01:13.2]} 41... hxg5 {[%clk
0:00:05.7]} 42. g3 {[%clk 0:01:06.5]} 42... Bf3 {[%clk 0:00:05.6]} 43. h4 {[%clk
0:01:04.5]} 43... g4 {[%clk 0:00:05.5]} 44. e6 {[%clk 0:01:02.8]} 44... fxe6
{[%clk 0:00:05]} 45. Rxe6 {[%clk 0:01:02.8]} 45... Rd7+ {[%clk 0:00:05.3]} 46.
Ke3 {[%clk 0:01:01.4]} 46... a4 {[%clk 0:00:05.3]} 47. Rb4 {[%clk 0:00:59.7]}
47... Bd1 {[%clk 0:00:04.6]} 48. Rd4 {[%clk 0:00:57]} 48... Rxd4 {[%clk
0:00:04]} 49. Kxd4 {[%clk 0:00:57.3]} 49... Bb3 {[%clk 0:00:04]} 50. Re4 {[%clk
0:00:57.1]} 50... Bd1 {[%clk 0:00:02.8]} 51. Ke5 {[%clk 0:00:57.4]} 51... Kh6
{[%clk 0:00:03]} 52. Kf6 {[%clk 0:00:56.9]} 52... Kh5 {[%clk 0:00:03.3]} 53. Kg7
{[%clk 0:00:53.8]} 53... Bf3 {[%clk 0:00:02.3]} 54. Re5# {[%clk 0:00:53.9]} 1-0

[Event "*** Titled Tuesday Blitz"]
[Site "Chess.com"]
[Date "2021.02.02"]
[Round "3"]
[White "Sippp"]
[Black "GelmanAlexander"]
[Result "1-0"]
[WhiteElo "2799"]
[BlackElo "2560"]
[TimeControl "180+1"]
[EndTime "10:31:24 PST"]
[Termination "Sippp won on time"]

1. e4 {[%clk 0:03:00.9]} 1... c5 {[%clk 0:02:59.7]} 2. Nf3 {[%clk 0:02:59.9]}
2... e6 {[%clk 0:03:00.3]} 3. d4 {[%clk 0:02:55.5]} 3... cxd4 {[%clk 0:03:01.2]}
4. Nxd4 {[%clk 0:02:55.6]} 4... a6 {[%clk 0:03:01.8]} 5. Be2 {[%clk 0:02:54.5]}
5... d6 {[%clk 0:03:00.8]} 6. O-O {[%clk 0:02:53.8]} 6... Nf6 {[%clk 0:03:01.4]}
7. Nc3 {[%clk 0:02:48.4]} 7... Nbd7 {[%clk 0:03:01.8]} 8. f4 {[%clk 0:02:44.3]}
8... b5 {[%clk 0:03:01.9]} 9. Bf3 {[%clk 0:02:41.6]} 9... Bb7 {[%clk 0:03:02]}
10. a3 {[%clk 0:02:22]} 10... Rc8 {[%clk 0:02:53.2]} 11. Re1 {[%clk 0:02:20.6]}
11... h5 {[%clk 0:02:27.4]} 12. Kh1 {[%clk 0:02:16]} 12... Qc7 {[%clk
0:02:17.2]} 13. Be3 {[%clk 0:02:02.4]} 13... Be7 {[%clk 0:01:59.2]} 14. Bg1
{[%clk 0:01:55.4]} 14... g6 {[%clk 0:01:48.7]} 15. Qe2 {[%clk 0:01:41.5]} 15...
e5 {[%clk 0:01:31.7]} 16. fxe5 {[%clk 0:01:17.3]} 16... Nxe5 {[%clk 0:01:24.7]}
17. a4 {[%clk 0:01:13.3]} 17... b4 {[%clk 0:01:21.8]} 18. Nd5 {[%clk 0:01:12.4]}
18... Nxd5 {[%clk 0:01:17.4]} 19. exd5 {[%clk 0:01:13.3]} 19... O-O {[%clk
0:01:06.4]} 20. Nc6 {[%clk 0:00:59.3]} 20... Bf6 {[%clk 0:00:55.1]} 21. Nxb4
{[%clk 0:00:17.8]} 21... Nxf3 {[%clk 0:00:41.2]} 22. Qxf3 {[%clk 0:00:17.3]}
22... Bxb2 {[%clk 0:00:41.5]} 23. Rab1 {[%clk 0:00:17.7]} 23... Bc3 {[%clk
0:00:40.1]} 24. Re2 {[%clk 0:00:17.8]} 24... Bg7 {[%clk 0:00:22.3]} 25. a5
{[%clk 0:00:14.3]} 25... Rfe8 {[%clk 0:00:19]} 26. Rxe8+ {[%clk 0:00:13.4]}
26... Rxe8 {[%clk 0:00:19.9]} 27. Nc6 {[%clk 0:00:13.5]} 27... Bc8 {[%clk
0:00:17.6]} 28. Bb6 {[%clk 0:00:12.5]} 28... Qd7 {[%clk 0:00:16]} 29. c4 {[%clk
0:00:12.3]} 29... Qf5 {[%clk 0:00:14]} 30. Qxf5 {[%clk 0:00:11.7]} 30... Bxf5
{[%clk 0:00:14.9]} 31. Rc1 {[%clk 0:00:11.3]} 31... Bd3 {[%clk 0:00:14.6]} 32.
c5 {[%clk 0:00:10.6]} 32... dxc5 {[%clk 0:00:14.4]} 33. d6 {[%clk 0:00:10.5]}
33... Bf5 {[%clk 0:00:12.5]} 34. Ne7+ {[%clk 0:00:10.2]} 34... Kf8 {[%clk
0:00:12.1]} 35. Nxf5 {[%clk 0:00:09.9]} 35... gxf5 {[%clk 0:00:12.4]} 36. d7
{[%clk 0:00:10.2]} 1-0

[Event "*** Titled Tuesday Blitz"]
[Site "Chess.com"]
[Date "2021.02.02"]
[Round "3"]
[White "Thjop"]
[Black "serhanberat_ozdemir"]
[Result "1-0"]
[WhiteElo "2672"]
[BlackElo "2422"]
[TimeControl "180+1"]
[EndTime "10:31:27 PST"]
[Termination "Thjop won on time"]

1. e4 {[%clk 0:02:54.3]} 1... c5 {[%clk 0:02:59.7]} 2. Nf3 {[%clk 0:02:53.8]}
2... e6 {[%clk 0:03:00.1]} 3. d3 {[%clk 0:02:53.7]} 3... d5 {[%clk 0:02:58.3]}
4. Nbd2 {[%clk 0:02:53.6]} 4... Nc6 {[%clk 0:02:56.2]} 5. g3 {[%clk 0:02:51.2]}
5... Nf6 {[%clk 0:02:56.3]} 6. Bg2 {[%clk 0:02:50]} 6... Be7 {[%clk 0:02:56.9]}
7. O-O {[%clk 0:02:50.4]} 7... O-O {[%clk 0:02:56.9]} 8. Re1 {[%clk 0:02:51]}
8... b6 {[%clk 0:02:55]} 9. e5 {[%clk 0:02:49.9]} 9... Nd7 {[%clk 0:02:54.1]}
10. Nf1 {[%clk 0:02:50.4]} 10... Qc7 {[%clk 0:02:54.2]} 11. Bf4 {[%clk
0:02:49.9]} 11... a5 {[%clk 0:02:54.8]} 12. h4 {[%clk 0:02:49.8]} 12... Ba6
{[%clk 0:02:48]} 13. h5 {[%clk 0:02:48.5]} 13... a4 {[%clk 0:02:32.5]} 14. h6
{[%clk 0:02:47.3]} 14... g6 {[%clk 0:02:31.8]} 15. a3 {[%clk 0:02:47.6]} 15...
c4 {[%clk 0:02:29.2]} 16. d4 {[%clk 0:02:43.8]} 16... c3 {[%clk 0:02:23.9]} 17.
bxc3 {[%clk 0:02:43.6]} 17... Na5 {[%clk 0:02:21.1]} 18. Qd2 {[%clk 0:02:37.6]}
18... Nc4 {[%clk 0:02:19.3]} 19. Qc1 {[%clk 0:02:37.4]} 19... Na5 {[%clk
0:02:06]} 20. Bg5 {[%clk 0:02:35.4]} 20... Bxg5 {[%clk 0:02:00.2]} 21. Qxg5
{[%clk 0:02:35.4]} 21... Qd8 {[%clk 0:01:49.9]} 22. Qf4 {[%clk 0:02:33.2]} 22...
Rc8 {[%clk 0:01:49.2]} 23. Ne3 {[%clk 0:02:00.7]} 23... Rxc3 {[%clk 0:01:43.8]}
24. Ng5 {[%clk 0:02:00.9]} 24... Qe7 {[%clk 0:01:24.6]} 25. Bxd5 {[%clk
0:01:41.4]} 25... Rxe3 {[%clk 0:01:15.1]} 26. Rxe3 {[%clk 0:01:19]} 26... exd5
{[%clk 0:01:11.4]} 27. e6 {[%clk 0:01:02.6]} 27... fxe6 {[%clk 0:01:05.1]} 28.
Qg4 {[%clk 0:00:59.2]} 28... e5 {[%clk 0:00:36.3]} 29. dxe5 {[%clk 0:00:50.2]}
29... Nxe5 {[%clk 0:00:37.2]} 30. Qd4 {[%clk 0:00:38.9]} 30... Qxg5 {[%clk
0:00:10.6]} 31. Rxe5 {[%clk 0:00:33.6]} 31... Qf6 {[%clk 0:00:11.2]} 32. Rxd5
{[%clk 0:00:22.1]} 32... Nc6 {[%clk 0:00:03.7]} 33. Qxf6 {[%clk 0:00:20.3]}
33... Rxf6 {[%clk 0:00:04.6]} 34. Re1 {[%clk 0:00:17.1]} 34... Bc4 {[%clk
0:00:01.5]} 35. Rd7 {[%clk 0:00:14.9]} 35... Bf7 {[%clk 0:00:01.6]} 36. Rb7
{[%clk 0:00:10.7]} 1-0

[Event "*** Titled Tuesday Blitz"]
[Site "Chess.com"]
[Date "2021.02.02"]
[Round "3"]
[White "azikom"]
[Black "eljanov"]
[Result "1-0"]
[WhiteElo "2664"]
[BlackElo "2886"]
[TimeControl "180+1"]
[EndTime "10:31:28 PST"]
[Termination "azikom won on time"]

1. d4 {[%clk 0:02:59.5]} 1... Nf6 {[%clk 0:02:59.4]} 2. Nf3 {[%clk 0:02:57.2]}
2... e6 {[%clk 0:02:58]} 3. c4 {[%clk 0:02:56.9]} 3... b6 {[%clk 0:02:54.9]} 4.
Nc3 {[%clk 0:02:56.6]} 4... Bb7 {[%clk 0:02:54.1]} 5. a3 {[%clk 0:02:55.9]} 5...
d5 {[%clk 0:02:50.9]} 6. Qa4+ {[%clk 0:02:55]} 6... Qd7 {[%clk 0:02:45.5]} 7.
Qb3 {[%clk 0:02:54.7]} 7... dxc4 {[%clk 0:02:28.9]} 8. Qxc4 {[%clk 0:02:54.4]}
8... Bd6 {[%clk 0:02:23.6]} 9. Bg5 {[%clk 0:02:51.7]} 9... Nd5 {[%clk
0:02:16.5]} 10. e3 {[%clk 0:02:47.4]} 10... O-O {[%clk 0:02:13.9]} 11. Bh4
{[%clk 0:02:47]} 11... Ba6 {[%clk 0:01:58.8]} 12. Qb3 {[%clk 0:02:37.3]} 12...
Nxc3 {[%clk 0:01:52.8]} 13. Qxc3 {[%clk 0:02:35.5]} 13... Bxf1 {[%clk
0:01:47.9]} 14. Rxf1 {[%clk 0:02:34.5]} 14... Nc6 {[%clk 0:01:40.3]} 15. Bg3
{[%clk 0:02:33.3]} 15... Ne7 {[%clk 0:01:33.2]} 16. Rc1 {[%clk 0:02:15.2]} 16...
Rac8 {[%clk 0:01:30.4]} 17. Qb3 {[%clk 0:01:48.6]} 17... c5 {[%clk 0:01:17.7]}
18. Ke2 {[%clk 0:01:23]} 18... Bxg3 {[%clk 0:01:09.7]} 19. hxg3 {[%clk
0:01:22.2]} 19... Rfd8 {[%clk 0:01:06.5]} 20. Rfd1 {[%clk 0:01:14.9]} 20... Qb7
{[%clk 0:00:57.8]} 21. dxc5 {[%clk 0:01:10.8]} 21... h6 {[%clk 0:00:39.3]} 22.
Rxd8+ {[%clk 0:01:03.2]} 22... Rxd8 {[%clk 0:00:39]} 23. cxb6 {[%clk 0:01:03.1]}
23... axb6 {[%clk 0:00:36.8]} 24. Qb5 {[%clk 0:00:55.6]} 24... Nf5 {[%clk
0:00:23.4]} 25. Kf1 {[%clk 0:00:52.5]} 25... Nd6 {[%clk 0:00:23.3]} 26. Qe2
{[%clk 0:00:47.7]} 26... Ne4 {[%clk 0:00:22.2]} 27. Qc2 {[%clk 0:00:43.7]} 27...
Qd5 {[%clk 0:00:19.6]} 28. Kg1 {[%clk 0:00:42.9]} 28... g6 {[%clk 0:00:18.2]}
29. Nd4 {[%clk 0:00:42]} 29... Nf6 {[%clk 0:00:13.5]} 30. b4 {[%clk 0:00:36.2]}
30... Rd7 {[%clk 0:00:11.8]} 31. Qc6 {[%clk 0:00:24.9]} 31... Kg7 {[%clk
0:00:09.8]} 32. Qxd5 {[%clk 0:00:23.9]} 32... Rxd5 {[%clk 0:00:10.2]} 33. a4
{[%clk 0:00:19.5]} 33... e5 {[%clk 0:00:10.2]} 34. Nc6 {[%clk 0:00:19.3]} 34...
Ng4 {[%clk 0:00:09.9]} 35. a5 {[%clk 0:00:18.1]} 35... bxa5 {[%clk 0:00:09.9]}
36. bxa5 {[%clk 0:00:18.2]} 36... Rd2 {[%clk 0:00:09.2]} 37. Ra1 {[%clk
0:00:18.1]} 37... Rc2 {[%clk 0:00:02.3]} 38. Nb4 {[%clk 0:00:17.4]} 1-0

[Event "*** Titled Tuesday Blitz"]
[Site "Chess.com"]
[Date "2021.02.02"]
[Round "3"]
[White "kekic76"]
[Black "zeitnot2006"]
[Result "0-1"]
[WhiteElo "2369"]
[BlackElo "2558"]
[TimeControl "180+1"]
[EndTime "10:31:28 PST"]
[Termination "zeitnot2006 won on time"]

1. e4 {[%clk 0:03:00.9]} 1... c5 {[%clk 0:02:57]} 2. Nf3 {[%clk 0:03:00.9]} 2...
e6 {[%clk 0:02:57.6]} 3. d4 {[%clk 0:03:01.1]} 3... cxd4 {[%clk 0:02:58.5]} 4.
Nxd4 {[%clk 0:02:59.7]} 4... Nc6 {[%clk 0:02:58.8]} 5. Nxc6 {[%clk 0:02:59.1]}
5... bxc6 {[%clk 0:02:59.7]} 6. Bd3 {[%clk 0:02:59.4]} 6... d5 {[%clk
0:02:59.7]} 7. O-O {[%clk 0:02:59.4]} 7... Nf6 {[%clk 0:02:59.8]} 8. Nc3 {[%clk
0:02:59.7]} 8... Be7 {[%clk 0:02:56.2]} 9. Qe2 {[%clk 0:02:59.2]} 9... O-O
{[%clk 0:02:48.4]} 10. b3 {[%clk 0:02:59.4]} 10... a5 {[%clk 0:02:37.3]} 11. Bb2
{[%clk 0:02:58.9]} 11... Bb7 {[%clk 0:02:28]} 12. Rad1 {[%clk 0:02:58.2]} 12...
Qc7 {[%clk 0:02:25.7]} 13. a4 {[%clk 0:02:53.6]} 13... Bd6 {[%clk 0:02:21.5]}
14. h3 {[%clk 0:02:52.9]} 14... Be5 {[%clk 0:02:13.1]} 15. Rfe1 {[%clk
0:02:48.1]} 15... Rfe8 {[%clk 0:01:57.4]} 16. Kh1 {[%clk 0:02:35.2]} 16... Nd7
{[%clk 0:01:47.3]} 17. exd5 {[%clk 0:02:23.1]} 17... exd5 {[%clk 0:01:48.2]} 18.
Qh5 {[%clk 0:02:08.8]} 18... g6 {[%clk 0:01:45]} 19. Qh4 {[%clk 0:02:08.2]}
19... Qd6 {[%clk 0:01:34]} 20. Qg4 {[%clk 0:01:43.8]} 20... Re6 {[%clk
0:01:22.8]} 21. Bf5 {[%clk 0:01:34.3]} 21... Nf6 {[%clk 0:01:22.8]} 22. Bxe6
{[%clk 0:01:28.5]} 22... Nxg4 {[%clk 0:01:21]} 23. Bxg4 {[%clk 0:01:29]} 23...
f6 {[%clk 0:00:36.5]} 24. Ne4 {[%clk 0:00:40.8]} 24... Qf8 {[%clk 0:00:25.6]}
25. Bxe5 {[%clk 0:00:34.6]} 25... fxe5 {[%clk 0:00:22.3]} 26. Ng5 {[%clk
0:00:35.1]} 26... Qf6 {[%clk 0:00:13.6]} 27. Ne6 {[%clk 0:00:18.6]} 27... Re8
{[%clk 0:00:09.8]} 28. Nc5 {[%clk 0:00:17.5]} 28... Bc8 {[%clk 0:00:06.8]} 29.
Bxc8 {[%clk 0:00:14.3]} 29... Rxc8 {[%clk 0:00:07.7]} 30. Kg1 {[%clk 0:00:13.1]}
30... Rd8 {[%clk 0:00:07]} 31. Re3 {[%clk 0:00:11.6]} 31... Qe7 {[%clk
0:00:04.6]} 32. Nd3 {[%clk 0:00:09.3]} 32... e4 {[%clk 0:00:04.8]} 33. Ne1
{[%clk 0:00:07.1]} 33... Qc5 {[%clk 0:00:04.1]} 34. Re2 {[%clk 0:00:06.3]} 34...
Rf8 {[%clk 0:00:04.2]} 35. Kf1 {[%clk 0:00:04.1]} 35... Kg7 {[%clk 0:00:04.8]}
36. g3 {[%clk 0:00:02.5]} 36... Qc3 {[%clk 0:00:04.8]} 37. Ng2 {[%clk
0:00:02.6]} 37... Qxg3 {[%clk 0:00:04]} 0-1